Cogmind - Beta 16.1 @@@ ROGUE MODE // 2026.02.18 @ 15:35:55 Player: cptwinky Result: Escaped! Performance ------------- Evolutions (9) 4500 Regions Visited (22) 4400 Robots Destroyed (190) 950 Value Destroyed (7495) 7495 Prototype IDs (61) 1220 Alien Tech Used (3) 600 Bonus (9039) 9039 TOTAL SCORE: 28204 Bonus ------- High Alert Combat Kills 349 Follower Combat Kills 4772 Network Hubs Disabled 400 Registered with UFD 300 Met Optimus in HQ 500 Met Imprinter 300 Met Zhirov 300 Built Enhanced Grunts 300 A7 Reached Mainframe 300 Met R17 at Cetus 500 Win 3000 Friendly Fire -1982 Cogmind --------- Core Integrity 1577/1600 Matter 270/300 Energy 590/600 System Corruption 0% Temperature Cool (-200) Movement Rolling (115) Ox2 Location To Epsilon Eridani Parts ------- > --- POWER (3) -------- Quantum Reactor Quantum Reactor Matter Drive > --- PROPULSION (6) --- Wheel Compact Wheel Armored Huge Wheel Armored Huge Wheel > --- UTILITY (11) ----- Advanced Cryofiber Web Advanced Heat Sink Huge Storage Unit Advanced Signal Interpreter 0b10 Decoder Chip [Scout] Quantum Capacitor Advanced Transmission Jammer Enhanced Scrap Shield (fused) Advanced Focal Shield > --- WEAPON (6) ------- Enhanced Nova Cannon 1B-0RG's Assimilator > --- INVENTORY (25) --- Reinforced Antimatter Reactor Quantum Reactor Compact Wheel High-capacity Storage Unit Experimental Matter Compressor (500) Experimental Matter Compressor (32) Deep Structural Scanner Advanced Force Field Long-range Tractor Beam Hacking Drone Bay (1/1) Transdimensional Reconstructor Advanced Variable Charge Gun Compact HERF Cannon Compact HERF Cannon Enhanced Nova Cannon Advanced KE Penetrator Advanced KE Penetrator Ragnarok Missile Launcher Ragnarok Missile Launcher Ragnarok Missile Launcher Advanced Datajack CR-A16's Pointy Stick Sapper Charge Peak State ------------ > --- POWER ------------ Quantum Reactor Quantum Reactor Matter Drive > --- PROPULSION ------- Wheel Compact Wheel Armored Huge Wheel Armored Huge Wheel > --- UTILITY ---------- Advanced Cryofiber Web Advanced Heat Sink Huge Storage Unit Advanced Signal Interpreter 0b10 Decoder Chip [Scout] Quantum Capacitor Advanced Transmission Jammer Enhanced Scrap Shield Advanced Focal Shield > --- WEAPON ----------- Enhanced Nova Cannon 1B-0RG's Assimilator > --- INVENTORY -------- Reinforced Antimatter Reactor Quantum Reactor Compact Wheel High-capacity Storage Unit Experimental Matter Compressor Experimental Matter Compressor Deep Structural Scanner Advanced Force Field Long-range Tractor Beam Hacking Drone Bay Transdimensional Reconstructor Advanced Variable Charge Gun Compact HERF Cannon Compact HERF Cannon Enhanced Nova Cannon Advanced KE Penetrator Advanced KE Penetrator Ragnarok Missile Launcher Ragnarok Missile Launcher Ragnarok Missile Launcher Advanced Datajack CR-A16's Pointy Stick Sapper Charge [Rating: 204] Favorites ----------- Power Quantum Reactor Engine Angular Momentum Engine Power Core Neutrino Core Reactor Quantum Reactor Propulsion Compact Wheel Treads Light Treads Wheel Compact Wheel Utility Huge Storage Unit Device Advanced Heat Sink Storage Huge Storage Unit Processor Advanced Signal Interpreter Hackware Makeshift Hacking Suite Protection Enhanced Scrap Shield Weapon Heavy Machine Gun Energy Gun Heavy Laser Energy Cannon Neutron Cannon Ballistic Gun Heavy Machine Gun Ballistic Cannon Heavy Mass Driver Launcher Mini Grenade Launcher Special Weapon Mining Laser Slashing Weapon Makeshift Sword Piercing Weapon CR-A16's Pointy Stick Special Melee Weapon 1B-0RG's Assimilator Build | -11 -10 -10 -8 -6 -6 -6 -6 -5 -5 -5 -5 -5 -5 -4 -4 -4 -4 -3 -3 -3 -2 -1 ------- Run | Yrd Mat Sub Scr Fac Low Low Zio Pro Fac Ext Cet Arc Hub Fac Upp Upp Zhi Pro Res Qua Res Acc Slots Evolved 18 | . . . . 8 . . . . 2 . . . . 2 . . . . 2 . 2 2 Power 2 | . . . . 1 . . . . . . . . . . . . . . . . 1 . Propulsion 4 | . . . . 1 . . . . . . . . . 1 . . . . . . . 2 Utility 9 | . . . . 3 . . . . 2 . . . . 1 . . . . 2 . 1 . Weapon 3 | . . . . 3 . . . . . . . . . . . . . . . . . . Parts Attached 170 | 6 3 17 9 25 6 1 3 4 8 27 11 3 3 24 . 1 3 1 1 1 7 6 Power 23 | 1 . 1 . 5 . . . 1 2 4 3 . . 1 . . 1 . . . 3 1 Engine 9 | 1 . 1 . 4 . . . 1 . 2 . . . . . . . . . . . . Core 6 | . . . . 1 . . . . 2 2 1 . . . . . . . . . . . Reactor 8 | . . . . . . . . . . . 2 . . 1 . . 1 . . . 3 1 Propulsion 31 | 2 . 4 1 4 1 1 1 1 1 3 3 . . 7 . . 1 . . . . 1 Treads 10 | 2 . 2 . . 1 . . 1 . 1 1 . . 2 . . . . . . . . Leg . | . . . . . . . . . . . . . . . . . . . . . . . Wheel 21 | . . 2 1 4 . 1 1 . 1 2 2 . . 5 . . 1 . . . . 1 Hover . | . . . . . . . . . . . . . . . . . . . . . . . Flight . | . . . . . . . . . . . . . . . . . . . . . . . Utility 63 | 1 3 4 4 9 3 . 2 . 4 11 3 1 1 8 . 1 1 1 1 1 2 2 Device 35 | . 1 1 1 3 2 . 2 . 2 8 1 . 1 6 . 1 1 1 . 1 1 2 Storage 6 | 1 1 1 . 1 . . . . . . . . . 2 . . . . . . . . Processor 5 | . . . . 2 . . . . . 1 1 . . . . . . . 1 . . . Hackware 4 | . . . . 1 . . . . 1 1 . 1 . . . . . . . . . . Protection 13 | . 1 2 3 2 1 . . . 1 1 1 . . . . . . . . . 1 . Artifact . | . . . . . . . . . . . . . . . . . . . . . . . Weapon 53 | 2 . 8 4 7 2 . . 2 1 9 2 2 2 8 . . . . . . 2 2 Energy Gun 7 | . . 2 . . . . . . . 3 1 1 . . . . . . . . . . Energy Cannon 7 | . . . 1 1 . . . 1 . . . . . 1 . . . . . . 2 1 Ballistic Gun 28 | 2 . 4 1 6 2 . . . 1 3 1 1 1 6 . . . . . . . . Ballistic Cannon 2 | . . . . . . . . . . 1 . . 1 . . . . . . . . . Launcher 3 | . . . 1 . . . . 1 . . . . . . . . . . . . . 1 Special Weapon 1 | . . 1 . . . . . . . . . . . . . . . . . . . . Impact Weapon . | . . . . . . . . . . . . . . . . . . . . . . . Slashing Weapon 1 | . . 1 . . . . . . . . . . . . . . . . . . . . Piercing Weapon 1 | . . . . . . . . . . 1 . . . . . . . . . . . . Special Melee Weapon 3 | . . . 1 . . . . . . 1 . . . 1 . . . . . . . . Unidentified Prototypes 16 | . . . . 1 2 . 1 1 . . 4 . . 3 . . 2 . . . . 2 Corrupted Parts 1 | . . . 1 . . . . . . . . . . . . . . . . . . . System Corruption 1 | . . . 1 . . . . . . . . . . . . . . . . . . . Parts Lost 19 | . . . . 3 . . . . 6 7 . . 1 . 1 . . . . . 1 . Power 2 | . . . . 2 . . . . . . . . . . . . . . . . . . Propulsion 7 | . . . . 1 . . . . 1 3 . . 1 . . . . . . . 1 . Utility 4 | . . . . . . . . . 1 2 . . . . 1 . . . . . . . Weapon 6 | . . . . . . . . . 4 2 . . . . . . . . . . . . Highest Loss Streak 6 | . . . . 1 . . . . 6 3 . . 1 . 1 . . . . . 1 . To Critical Strikes 1 | . . . . . . . . . 1 . . . . . . . . . . . . . Average Backups 18 | 4 12 14 13 18 20 20 19 18 18 17 19 19 18 19 20 20 21 21 19 20 21 21 Power . | . 1 . . . . . 1 . 1 1 . 1 1 . . . . 1 1 . . 1 Propulsion 2 | 2 3 3 3 2 3 2 2 2 1 1 2 2 1 2 4 4 3 1 2 2 2 1 Utility 7 | . 3 4 2 6 8 9 9 8 7 7 9 9 9 8 8 8 9 10 8 8 7 7 Weapon 5 | . 4 5 4 4 5 5 4 5 5 4 5 5 5 7 7 7 7 7 6 7 7 9 Tool/Special . | . . . . . . . . . . . . . . . . . . . . . . . Unused Backups 40 | . 6 4 4 2 1 . 3 . 2 2 1 . . 1 . . 1 . . . 2 11 Power 2 | . . . . . . . . . . . . . . . . . . . . . 1 1 Propulsion 8 | . 1 2 1 1 . . . . . 2 . . . . . . 1 . . . . . Utility 10 | . 2 . 1 . . . 1 . 2 . . . . 1 . . . . . . 1 2 Weapon 16 | . 3 2 2 1 . . 1 . . . 1 . . . . . . . . . . 6 Tool/Special 4 | . . . . . 1 . 1 . . . . . . . . . . . . . . 2 Average Slot Usage (%) 88 | . 97 100 99 97 92 93 90 93 92 88 88 93 89 84 74 75 73 75 76 76 71 68 Engine 6 | . 14 14 14 12 12 12 12 12 . 4 . . . . . . . . . . . . Reactor 4 | . . . . . . . . . . . 2 11 11 10 10 10 10 10 9 8 11 11 Treads 7 | . 28 26 15 5 6 6 2 4 5 1 5 5 5 3 . . . . . . . . Wheel 11 | . . 1 12 13 12 12 15 13 11 9 5 11 11 13 20 20 20 20 18 18 12 14 Device 11 | . . 9 . 4 6 6 6 5 11 9 10 11 11 18 19 20 16 14 18 18 19 19 Storage 7 | . 17 14 13 6 6 6 6 6 5 5 5 5 5 5 5 5 5 6 6 4 4 3 Processor 4 | . . . . 5 6 6 6 6 5 10 11 8 5 5 5 5 5 5 9 9 8 7 Hackware 1 | . . . . 5 . . . . 4 6 . 2 5 1 . . . . . . . . Protection 6 | . 7 4 14 7 6 6 6 6 5 2 5 5 5 5 5 5 6 8 5 9 5 3 Energy Gun 1 | . . 6 . . . . . . . 9 6 8 2 . . . . . . . . . Energy Cannon 1 | . . . 3 . . . . . . 3 . . . . . 3 . 1 . 2 3 2 Ballistic Gun 17 | . 28 20 21 25 24 31 28 31 25 16 25 23 21 19 2 . 1 1 4 1 . . Slashing Weapon 1 | . . . . 4 6 6 5 1 4 . . . . . . . . . . . . . Special Melee Weapon 1 | . . . . . . . . . . . . . . 1 5 5 5 5 4 4 4 3 Peak Build Rating 204 | 6 10 24 27 69 80 80 84 85 96 105 127 116 116 158 146 151 153 153 164 169 184 204 Average Rating 92 | 5 8 12 25 59 73 79 77 81 92 88 109 113 115 128 143 147 147 149 162 166 181 197 On Entrance 96 | . 6 10 22 24 65 80 80 80 83 72 105 111 116 116 145 143 148 153 151 164 169 181 Avg Prop Armor Cover (%) 5 | . . 9 9 5 3 3 3 3 4 6 3 4 4 5 . . . . . . . . Naked Turns . | . . . . . . . . . . . . . . . . . . . . . . . Heaviest Build 249 | 13 36 59 61 141 148 147 151 156 161 155 166 167 177 219 210 221 211 214 212 224 248 249 Greatest Support 107 | 40 40 40 40 50 32 32 48 48 32 44 107 20 26 64 58 58 58 58 58 58 58 82 Greatest Overweight (x) 13 | . . 5 6 13 4 4 4 4 5 8 8 8 8 7 3 3 3 3 3 3 5 3 Average Overweight (x) 3 | . . . 4 3 4 4 3 3 4 3 5 8 6 4 3 3 3 3 3 3 4 2 Largest Inventory Capacity 25 | 8 15 20 20 25 25 25 25 25 25 25 25 25 25 25 25 25 25 25 25 25 25 25 Average Capacity 22 | 7 13 15 19 23 25 25 25 25 25 25 25 25 25 25 25 25 25 25 25 25 25 25 Most Carried 25 | 7 15 20 20 25 25 25 25 25 25 25 25 25 25 25 25 24 25 25 23 25 25 25 Average Carried 22 | 4 12 15 19 23 24 24 24 24 24 23 24 25 24 24 23 23 24 24 22 24 24 22 Final Capacity 25 | 8 15 20 20 25 25 25 25 25 25 25 25 25 25 25 25 25 25 25 25 25 25 25 Final Carried 25 | 7 15 20 20 25 25 25 25 25 24 25 25 25 25 25 23 24 25 24 22 25 25 23 Class Distribution -------------------- 28% | Scavenger-Mutant 25% | Mutant 21% | Scavenger-Executioner 10% | Executioner 3% | Derelict-Skirmisher Dominant Class ---------------- Mutant | -10/Materials Mutant | -10/Subcaves Mutant | -8/Scraptown Derelict-Skirmisher | -6/Factory Skirmisher | -6/Lower Caves Executioner | -6/Lower Caves Executioner | -6/Zion Executioner | -5/Proximity Caves Derelict-Executioner | -5/Factory Scavenger-Executioner | -5/Extension Scavenger-Executioner | -5/Cetus Scavenger-Executioner | -5/Archives Scavenger-Executioner | -5/Hub_04(d) Scavenger-Executioner | -4/Factory Scavenger-Mutant | -4/Upper Caves Scavenger-Mutant | -4/Upper Caves Scavenger-Mutant | -4/Zhirov Scavenger-Mutant | -3/Proximity Caves Scavenger-Mutant | -3/Research Scavenger-Mutant | -3/Quarantine Scavenger-Mutant | -2/Research Scavenger-Mutant | -1/Access Resources | -11 -10 -10 -8 -6 -6 -6 -6 -5 -5 -5 -5 -5 -5 -4 -4 -4 -4 -3 -3 -3 -2 -1 ----------- Run | Yrd Mat Sub Scr Fac Low Low Zio Pro Fac Ext Cet Arc Hub Fac Upp Upp Zhi Pro Res Qua Res Acc Matter Collected 14849 | 318 82 506 170 875 343 211 105 454 162 1013 400 190 339 3809 459 90 85 1453 257 1092 1421 1015 Remotely 1099 | . . . . . . . . . . . . . . . . . . 559 255 285 . . Salvage Created 10571 | 103 134 374 161 1514 162 41 110 361 321 1567 244 184 478 2704 73 37 315 411 94 5 513 665 Parts 461 | 11 10 17 6 76 11 4 2 7 13 61 10 6 18 118 5 4 1 18 3 1 27 32 Haulers Intercepted 3 | . . . . 1 . . . . 1 . . . . 1 . . . . . . . . Recyclers Shooed 10 | . . . . 5 . . . . . . . . 2 3 . . . . . . . . Parts Field Recycled 107 | . 7 . . . . . . . 2 . . . . 56 10 3 . 29 . . . . Retrieved Matter 1609 | . 58 . . . . . . . 19 . . . . 668 280 200 . 384 . . . . Parts Self-Destructed 65 | . . 19 . . . 2 6 3 . . . . . . 15 6 1 13 . . . . Prevented 8 | . . . . . . . . . . . . . . . 2 . . 6 . . . . Parts Restored . | . . . . . . . . . . . . . . . . . . . . . . . Kills | -11 -10 -10 -8 -6 -6 -6 -6 -5 -5 -5 -5 -5 -5 -4 -4 -4 -4 -3 -3 -3 -2 -1 ------- Run | Yrd Mat Sub Scr Fac Low Low Zio Pro Fac Ext Cet Arc Hub Fac Upp Upp Zhi Pro Res Qua Res Acc Combat Hostiles Destroyed 129 | . 3 8 4 23 1 1 . 5 1 21 4 2 9 25 5 3 . . 1 1 7 5 Guns 73 | . 3 8 . 12 . 1 . 1 1 10 4 2 8 22 . . . . 1 . . . Cannons 11 | . . . . . . . . . . 4 . . 1 . . . . . . . 5 1 AOE 41 | . . . 4 11 1 . . 4 . 5 . . . 3 5 3 . . . 1 . 4 Classes Destroyed 23 | 1 2 2 3 7 2 . . 3 1 1 . . . . . . . . . 1 . . Worker 6 | . . . . 2 . . . . . . . . . 3 . . . 1 . . . . Builder 8 | . . . . 1 . . . . . 3 . . . 3 . . . . . . 1 . Tunneler 6 | 6 . . . . . . . . . . . . . . . . . . . . . . Hauler 3 | . . . . 1 . . . . 1 . . . . 1 . . . . . . . . Recycler 24 | . . . . 4 . . . . 1 3 . . . 11 . . . 1 . . . 4 Mechanic 1 | . . . . . . . . . 1 . . . . . . . . . . . . . Operator 6 | . 1 . . 1 . . . . . 2 . 1 . 1 . . . . . . . . Drone 1 | . . . . . . . . 1 . . . . . . . . . . . . . . Watcher 1 | . . . . . . . . . . 1 . . . . . . . . . . . . Swarmer 37 | . . . . 8 . . . 2 . 5 . . . 10 5 3 . . . . . 4 Saboteur 1 | . . . . . . . . . . . . . . . . . . . . 1 . . Grunt 31 | . 3 . . 9 1 . . 1 . 9 . . 6 . . . . . . . 2 . Brawler 2 | . . . . . . . . 1 . . . . . . . . . . . . 1 . Researcher 1 | . . . . . 1 . . . . . . . . . . . . . . . . . Sentry 18 | . . 1 . 2 . . . . . 6 . 2 1 5 . . . . 1 . . . Hunter 3 | . . . . 2 . . . . . 1 . . . . . . . . . . . . Programmer 21 | . . . . 2 . 1 . . 1 . . . 2 10 . . . . . . 4 1 Cetus Guard 4 | . . . . . . . . . . . 4 . . . . . . . . . . . Subdweller 7 | . . 7 . . . . . . . . . . . . . . . . . . . . Federalist 1 | . . . 1 . . . . . . . . . . . . . . . . . . . Ranger 2 | . . . 2 . . . . . . . . . . . . . . . . . . . Scrapper 1 | . . . 1 . . . . . . . . . . . . . . . . . . . Decomposer 1 | . . . . . . . . . . . . . . . . . . 1 . . . . Packrat 3 | . . . . . . . . 3 . . . . . . . . . . . . . . Butcher 1 | . . . . . . . . 1 . . . . . . . . . . . . . . Mutant 1 | . . . . . 1 . . . . . . . . . . . . . . . . . Sapper 3 | . . . . . . . . . . . . . . . . . . 3 . . . . Best Kill Streak 11 | 2 2 1 4 8 1 1 . 2 2 11 2 2 4 8 2 3 . . 1 1 4 4 Combat Bots Only 11 | . 2 1 4 8 1 1 . 2 1 11 2 2 4 5 2 3 . . 1 1 3 4 Max Kills in Single Turn 5 | 1 1 1 2 2 2 1 . 2 1 5 1 1 2 4 2 2 . 1 1 1 2 4 Gunslinging 1 | . . . . 1 . . . . . . . . 1 1 . . . . . . . . Exploded 5 | . . . 2 2 1 . . 2 . 5 . . . 3 2 2 . . . 1 . 4 Melee . | . . . . . . . . . . . . . . . . . . . . . . . Uniques/NPCs Destroyed . | . . . . . . . . . . . . . . . . . . . . . . . Combat | -11 -10 -10 -8 -6 -6 -6 -6 -5 -5 -5 -5 -5 -5 -4 -4 -4 -4 -3 -3 -3 -2 -1 -------- Run | Yrd Mat Sub Scr Fac Low Low Zio Pro Fac Ext Cet Arc Hub Fac Upp Upp Zhi Pro Res Qua Res Acc Hostile Shots Fired 677 | . 9 33 5 135 7 3 . 12 114 61 29 6 32 93 11 5 . 4 2 8 78 30 Missed 212 | . 3 7 1 34 3 . . 9 34 21 6 3 18 27 2 3 . 1 . 3 29 8 Hits 465 | . 6 26 4 101 4 3 . 3 80 40 23 3 14 66 9 2 . 3 2 5 49 22 Projectile 465 | . 6 26 4 101 4 3 . 3 80 40 23 3 14 66 9 2 . 3 2 5 49 22 AOE 4 | . . . . . . . . . 2 . . . 2 . . . . . . . . . Critical Strikes 30 | . . . . 2 . 1 . 1 10 2 4 . . 2 . . . 1 . 1 4 2 Part Disruptions 1 | . . . . . . . . . . . . . . . . . . . . . 1 . Damage Taken 9074 | . 65 621 59 1442 48 46 . 100 1623 860 500 100 561 1395 191 13 . 99 56 142 743 410 Core 956 | . 22 77 3 115 12 . . . 50 168 23 21 94 81 12 . . 38 . 44 173 23 Absorbed by Shields 1580 | . . . . 120 . . . 26 239 46 143 . . . . 14 . 29 60 114 642 147 Reduced by Siege Mode 5 | . . . . . . . . . . . . . . 5 . . . . . . . . Redirected to Shielding 19 | . . . . . . . . . . . . . . . . . . . . . 19 . Regen/Repaired (Parts) 1140 | . . . 478 98 . . . . . . . . . 272 23 . . 9 . 160 82 18 Core Remaining (%) 84 | 100 . . 59 . . . . 85 . . . . 64 . . . . 88 . 96 88 98 Volleys Fired 471 | 25 14 42 2 46 31 2 . 29 6 49 12 6 16 77 9 8 . 1 7 14 40 35 Largest 6 | 2 2 2 1 5 4 5 . 5 5 6 6 6 6 6 1 1 . 1 1 1 1 1 Hottest 358 | 40 40 100 30 144 121 153 . 153 150 313 267 226 358 183 33 90 . 90 35 90 113 120 Shots Fired 1187 | 50 28 69 2 135 35 10 . 45 29 209 58 32 72 297 9 8 . 1 7 14 42 35 Gun 958 | 50 28 57 . 118 34 10 . 20 29 179 58 32 62 266 4 . . . 7 4 . . Cannon 180 | . . . . 1 . . . 20 . 29 . . 8 30 . 6 . 1 . 9 42 34 Launcher 37 | . . . 2 16 1 . . 5 . 1 . . 2 1 5 2 . . . 1 . 1 Special 12 | . . 12 . . . . . . . . . . . . . . . . . . . . Kinetic 872 | 50 28 42 . 118 34 10 . 20 29 120 45 30 61 270 4 . . . 7 4 . . Thermal 255 | . . 27 . 1 . . . 20 . 88 13 2 9 26 . 6 . 1 . 9 29 24 Explosive 37 | . . . 2 16 1 . . 5 . 1 . . 2 1 5 2 . . . 1 . 1 Electromagnetic 23 | . . . . . . . . . . . . . . . . . . . . . 13 10 Robot Hit Streak 21 | 8 10 13 . 16 . 4 . 5 5 13 12 15 9 21 2 1 . . 2 5 12 4 Robot Miss Streak 10 | 3 2 2 . 10 . 1 . 3 4 10 2 1 5 3 2 1 . . . 1 3 2 Penetration Max 2 | . . . . . . . . . . 1 1 . 1 2 . . . . . . . . Secondary Targets 10 | . . . . 2 . . . . 1 1 3 . 1 2 . . . . . . . . Max Gunslinging Chain 1 | . . . . 1 . . . . 1 1 1 . 1 1 . . . . . . . . Capacitor 65 | . . . . . . . . . . . . . . . . . . . . . 31 34 Shots Hit Robots 734 | 32 21 45 1 75 3 5 5 15 20 148 48 28 34 168 2 1 10 30 2 7 25 9 Core Hits 423 | 12 8 13 10 69 11 2 . 16 7 63 17 10 27 84 12 7 4 8 2 22 10 9 Critical Kills 11 | . 1 . . . . . . . . 2 2 . 2 3 . . . . . . 1 . Critical Parts Destroyed 9 | 1 . . . . 1 . . . . 1 1 . . 4 . . . . 1 . . . Critical Strikes 31 | 1 1 1 . . 1 . . . . 5 3 1 3 8 . . 1 4 1 . 1 . Burn 3 | . . 1 . . . . . . . 2 . . . . . . . . . . . . Meltdown 3 | . . . . . . . . . . 2 . . . . . . . . . . 1 . Destroy 17 | 1 1 . . . 1 . . . . 1 3 . 2 7 . . . . 1 . . . Blast 2 | . . . . . . . . . . . . . 1 1 . . . . . . . . Impale 6 | . . . . . . . . . . . . 1 . . . . 1 4 . . . . Melee Attacks 141 | . . 3 1 25 7 . 6 3 8 27 1 3 . 15 . . 10 30 . 2 . . Impact . | . . . . . . . . . . . . . . . . . . . . . . . Slashing 48 | . . 3 . 25 5 . 5 3 7 . . . . . . . . . . . . . Piercing 51 | . . . . . . . . . . 1 . 2 . 15 . . 7 26 . . . . Sneak Attacks 89 | . . . 1 8 3 . 1 3 4 26 1 3 . 4 . . 3 30 . 2 . . Combat Hostiles . | . . . . . . . . . . . . . . . . . . . . . . . Follow-up Attacks . | . . . . . . . . . . . . . . . . . . . . . . . Damage Inflicted 26074 | 366 225 680 435 3837 582 125 292 991 658 3545 1302 743 1444 4805 444 243 463 1686 109 981 1188 930 Guns 13219 | 364 223 680 . 1428 327 125 . 246 454 2564 1302 610 979 3736 32 . . . 109 40 . . Cannons 2680 | . . . . . . . . . . 522 . . 156 413 . 35 . . . 77 1125 352 Explosions 6013 | . . . 435 1796 160 . . 525 . 426 . . 309 237 412 208 . . . 864 63 578 Melee 4158 | . . . . 613 95 . 292 220 204 33 . 133 . 419 . . 463 1686 . . . . Ramming 4 | 2 2 . . . . . . . . . . . . . . . . . . . . . Kinetic 12276 | 364 223 489 . 1428 327 125 . 246 454 1839 1078 587 1010 3925 32 . . . 109 40 . . Thermal 3219 | . . 191 . 152 . . . . . 1247 224 23 125 224 . 35 . . . 77 828 93 Explosive 5798 | . . . 435 1644 160 . . 525 . 426 . . 309 237 412 208 . . . 864 . 578 Electromagnetic 619 | . . . . . . . . . . . . . . . . . . . . . 360 259 Impact . | . . . . . . . . . . . . . . . . . . . . . . . Slashing 1424 | . . . . 613 95 . 292 220 204 . . . . . . . . . . . . . Piercing 2734 | . . . . . . . . . . 33 . 133 . 419 . . 463 1686 . . . . Highest Corruption 9 | . . . 1 3 3 1 1 . 5 5 . . 4 3 1 1 1 1 . . 9 . Average Corruption 1 | . . . 1 2 1 1 1 . 3 2 . . 4 2 1 1 1 1 . . 4 . Corruption Purged 13 | . . . . . 3 . . . . 5 . . . 5 . . . . . . . . Corruption Blocked 14 | . . . . . . . . . . . 14 . . . . . . . . . . . Effects 94 | . . . . 4 2 2 1 . 1 23 . . 1 35 2 4 1 6 . . 12 . Message Errors 24 | . . . . . . 2 . . . 4 . . . 9 1 2 . 3 . . 3 . Matter Fused 23 | . . . . 2 . . 1 . . 7 . . . 8 . . 1 1 . . 3 . Heat Flow Errors 10 | . . . . 1 . . . . . 2 . . . 3 . 1 . . . . 3 . Energy Discharges 11 | . . . . 1 . . . . . 3 . . . 5 . 1 . . . . 1 . Parts Rejected 2 | . . . . . . . . . 1 . . . 1 . . . . . . . . . Parts Fused 1 | . . . . . . . . . . 1 . . . . . . . . . . . . Data Loss (minor) 13 | . . . . . . . . . . 4 . . . 6 1 . . 2 . . . . Data Loss (major) 2 | . . . . . . . . . . 1 . . . 1 . . . . . . . . Misfires 5 | . . . . . 1 . . . . 1 . . . 1 . . . . . . 2 . Alerts 2 | . . . . . 1 . . . . . . . . 1 . . . . . . . . Weapon Failures 1 | . . . . . . . . . . . . . . 1 . . . . . . . . Overload Shots 3 | . . . . . . . . . . . 2 . 1 . . . . . . . . . Overflow Damage 1148 | . . . 2 314 . . 166 124 17 . . 105 . 109 . . 98 108 . 7 55 43 Projectiles 103 | . . . . . . . . . . . . . . 48 . . . . . . 55 . Explosions 113 | . . . 2 35 . . . . . . . . . 26 . . . . . 7 . 43 Melee 932 | . . . . 279 . . 166 124 17 . . 105 . 35 . . 98 108 . . . . Knockbacks 1 | . . . . . . . . . . . . . 1 . . . . . . . . . Impact . | . . . . . . . . . . . . . . . . . . . . . . . Kinetic . | . . . . . . . . . . . . . . . . . . . . . . . Secondary 1 | . . . . . . . . . . . . . 1 . . . . . . . . . Self-Inflicted Damage 274 | . . . 10 167 . . . 49 . . . . 48 . . . . . . . . . Shots 12 | . . . 1 7 . . . 3 . . . . 1 . . . . . . . . . Rammed 3 | 2 1 . . . . . . . . . . . . . . . . . . . . . Targets Rammed 3 | 2 1 . . . . . . . . . . . . . . . . . . . . . Kicked . | . . . . . . . . . . . . . . . . . . . . . . . Crushed . | . . . . . . . . . . . . . . . . . . . . . . . Highest Temperature 434 | . 12 . 9 360 57 96 . 336 434 387 199 135 279 149 . 164 . . . . 307 . Average Temperature 98 | . 6 . 7 127 33 52 . 104 77 108 89 45 70 37 . 47 . . . . 146 . Received Heat Transfer 1523 | . 36 54 12 357 . . . 26 604 216 9 . 27 81 18 . . 12 8 28 22 13 Effects 3 | . . . . 1 . . . 1 1 . . . . . . . . . . . . . Shutdowns 1 | . . . . . . . . . 1 . . . . . . . . . . . . . Interference 1 | . . . . 1 . . . . . . . . . . . . . . . . . . Short Circuit 1 | . . . . . . . . 1 . . . . . . . . . . . . . . Siege Activations 2 | . . . . . . . . . . . . . . 2 . . . . . . . . Total Turns 81 | . . . . . . . . . . . . . . 81 . . . . . . . . Longest Duration 73 | . . . . . . . . . . . . . . 73 . . . . . . . . Martial Activations . | . . . . . . . . . . . . . . . . . . . . . . . Shielding Activations . | . . . . . . . . . . . . . . . . . . . . . . . Robots Disrupted 1 | . . . . . . . . . . . . . . . . . . . . . 1 . Combat Hostiles 1 | . . . . . . . . . . . . . . . . . . . . . 1 . Robots Corrupted 1 | . . . . . . . . . . . . . . . . . . . . . 1 . Combat Hostiles 1 | . . . . . . . . . . . . . . . . . . . . . 1 . Parts Fried 2 | . . . . . . . . . . . . . . . . . . . . . 2 . Impact Corruptions . | . . . . . . . . . . . . . . . . . . . . . . . Robots Melted 3 | . . . . . . . . . . 2 . . . . . . . . . . 1 . Combat Hostiles 3 | . . . . . . . . . . 2 . . . . . . . . . . 1 . Parts Melted 11 | . . . 1 . . . . . . 7 . . . . . . . . . . 2 1 Heat Transferred 3752 | . . 518 . 100 . . . . . 2072 370 37 198 . . . . . . . 383 74 Parts Sabotaged . | . . . . . . . . . . . . . . . . . . . . . . . Parts Stolen . | . . . . . . . . . . . . . . . . . . . . . . . Parts Stripped . | . . . . . . . . . . . . . . . . . . . . . . . Power Chain Reactions 1 | . . . . . . . . . . . . . . . . . . . . . 1 . Alert | -11 -10 -10 -8 -6 -6 -6 -6 -5 -5 -5 -5 -5 -5 -4 -4 -4 -4 -3 -3 -3 -2 -1 ------- Run | Yrd Mat Sub Scr Fac Low Low Zio Pro Fac Ext Cet Arc Hub Fac Upp Upp Zhi Pro Res Qua Res Acc Maximum Alert Level 3 | . . . . 2 . . . . . 2 . . 2 1 . . . . . 3 3 2 Low Security (%) 54 | 100 100 . . 73 . . . . 100 65 100 100 16 49 . . . . 100 43 . . Level 1 30 | . . . . 15 . . . . . 18 . . 66 50 . . . . . 47 11 89 Level 2 10 | . . . . 10 . . . . . 15 . . 17 . . . . . . 9 53 10 Level 3 3 | . . . . . . . . . . . . . . . . . . . . . 35 . Level 4 . | . . . . . . . . . . . . . . . . . . . . . . . Level 5 . | . . . . . . . . . . . . . . . . . . . . . . . High Security . | . . . . . . . . . . . . . . . . . . . . . . . Max Security . | . . . . . . . . . . . . . . . . . . . . . . . Peak Influence 869 | 5 51 . . 465 . . . . 32 500 160 174 428 285 . . . . 163 698 869 555 Initial 392 | . . . . . . . . . 21 . 71 43 1 189 . . . . . 85 392 310 Average 216 | 1 8 . . 126 . . . . 4 174 102 86 302 196 . . . . 106 242 626 323 Influence Increases 8761 | 30 110 20 . 949 . 32 15 211 135 1410 339 180 620 1004 513 187 15 111 213 975 1106 586 Destroy 0b10 Robot/C 4180 | . 60 20 . 460 . 20 . 160 20 700 160 80 260 520 300 100 . 60 60 420 520 260 Destroy 0b10 Robot/NC 365 | 30 5 . . 45 . . 15 10 15 60 10 5 5 95 . . 15 5 . 15 15 20 Destroy Leader 726 | . 20 . . 102 . 10 . 10 12 84 . . 60 122 30 20 . 10 20 64 112 50 Allied During Kill 1776 | . . . . . . 2 . 31 1 403 134 68 161 11 183 67 . 36 56 283 252 88 Trap Triggered on 0b10 10 | . . . . . . . . . . . . . . . . . . . . 10 . . Successful Hack 394 | . 24 . . 29 . . . . 35 31 . . . 61 . . . . . 79 111 24 Disable Machine 570 | . . . . 180 . . . . 30 45 15 15 60 105 . . . . 15 60 15 30 Destroy Structure 665 | . 1 . . 103 . . . . 22 72 20 12 74 90 . . . . 62 44 66 99 Lose Combat Pursuer 75 | . . . . 30 . . . . . 15 . . . . . . . . . . 15 15 Influence Decreases 8215 | 30 110 20 . 518 431 32 15 176 170 1282 359 283 237 1112 348 283 364 111 60 430 1286 558 Entered New Map 1620 | . . . . . 161 . . . 14 . 57 65 4 199 104 85 349 . . 68 306 208 Time Decay 4738 | 30 110 20 . 312 270 32 15 176 125 532 222 198 161 763 214 198 15 103 60 342 530 310 Lost Part 130 | . . . . 20 . . . . 20 60 . . 10 . 10 . . . . . 10 . Lost Ally 641 | . . . . . . . . . 11 240 80 20 62 . 20 . . 8 . 20 140 40 Purge Threat 1086 | . . . . 186 . . . . . 450 . . . 150 . . . . . . 300 . Squads Dispatched 46 | . 2 . . 10 . . . . 3 6 . . 5 8 . . . . . 4 6 2 Investigation 12 | . 2 . . 5 . . . . 2 1 . . 2 . . . . . . . . . Extermination 18 | . . . . 2 . . . . 1 . . . 1 8 . . . . . 1 3 2 Reinforcement 12 | . . . . 3 . . . . . 5 . . . . . . . . . 2 2 . Assault 4 | . . . . . . . . . . . . . 2 . . . . . . 1 1 . Garrison . | . . . . . . . . . . . . . . . . . . . . . . . Intercept . | . . . . . . . . . . . . . . . . . . . . . . . Searches Triggered . | . . . . . . . . . . . . . . . . . . . . . . . Construction Impeded 4 | . . . . 1 . . . . . 3 . . . . . . . . . . . . Haulers Reinforced . | . . . . . . . . . . . . . . . . . . . . . . . Active Scanning Responses . | . . . . . . . . . . . . . . . . . . . . . . . Cargo Convoy Interrupts . | . . . . . . . . . . . . . . . . . . . . . . . Stealth | -11 -10 -10 -8 -6 -6 -6 -6 -5 -5 -5 -5 -5 -5 -4 -4 -4 -4 -3 -3 -3 -2 -1 --------- Run | Yrd Mat Sub Scr Fac Low Low Zio Pro Fac Ext Cet Arc Hub Fac Upp Upp Zhi Pro Res Qua Res Acc Distress Signals 10 | . . . . 2 . . . . . 1 2 . 3 . . . . . . . 2 . Communications Jammed 75 | . . . . . . . . . . . . . 1 1 1 . . 2 . 38 30 2 Distress Signals 70 | . . . . . . . . . . . . . . 1 1 . . . . 36 30 2 Times Spotted 283 | . 9 9 6 34 3 1 . 10 9 40 11 9 20 34 11 5 . 4 3 19 29 17 Peak Tracking Total 9 | . 2 2 8 6 3 1 . 3 7 9 5 2 4 4 3 3 . 1 1 6 4 6 Tactical Retreats 4 | . . . . 1 . . . . . 1 . . . . . . . . . . 1 1 Traps | -11 -10 -10 -8 -6 -6 -6 -6 -5 -5 -5 -5 -5 -5 -4 -4 -4 -4 -3 -3 -3 -2 -1 ------- Run | Yrd Mat Sub Scr Fac Low Low Zio Pro Fac Ext Cet Arc Hub Fac Upp Upp Zhi Pro Res Qua Res Acc Traps Triggered 9 | . 1 1 . . . . . . . 3 . . . 1 . . . . . . 1 2 Indirectly . | . . . . . . . . . . . . . . . . . . . . . . . Trap Hack Attempts 148 | . . . . 1 . . . . . . . . . . . . . . . 102 45 . Triggered . | . . . . . . . . . . . . . . . . . . . . . . . Disarmed . | . . . . . . . . . . . . . . . . . . . . . . . Reprogrammed 9 | . . . . 1 . . . . . . . . . . . . . . . 4 4 . Reused 3 | . . 2 . . . . . . . . . . . . . . . . . 1 . . Traps Extracted . | . . . . . . . . . . . . . . . . . . . . . . . Installed 2 | . . 2 . . . . . . . . . . . . . . . . . . . . Triggered 1 | . . . . . . . . . . . . . . . . . . . . 1 . . Most Traps Carried 2 | . . 2 . . . . . . . . . . . . . . . . . . . . Machines | -11 -10 -10 -8 -6 -6 -6 -6 -5 -5 -5 -5 -5 -5 -4 -4 -4 -4 -3 -3 -3 -2 -1 ---------- Run | Yrd Mat Sub Scr Fac Low Low Zio Pro Fac Ext Cet Arc Hub Fac Upp Upp Zhi Pro Res Qua Res Acc Machines Disabled 42 | . . 1 . 12 2 . . . 2 4 1 1 4 7 . . . . 1 4 1 2 Max in Single Turn 4 | . . 1 . 4 2 . . . 1 1 1 1 3 1 . . . . . 1 . 1 Garrison Access 6 | . . . . 2 . . . . . . . . 1 . . . . . . 1 2 . Network Hub 2 | . . . . . . . . . . . . . 2 . . . . . . . . . Energy Cycler 2 | . . . . . . . . . . 2 . . . . . . . . . . . . Machines Repaired . | . . . . . . . . . . . . . . . . . . . . . . . Machines Dismantled . | . . . . . . . . . . . . . . . . . . . . . . . Machines Sabotaged . | . . . . . . . . . . . . . . . . . . . . . . . Overloaded Fab Kills . | . . . . . . . . . . . . . . . . . . . . . . . Hacking | -11 -10 -10 -8 -6 -6 -6 -6 -5 -5 -5 -5 -5 -5 -4 -4 -4 -4 -3 -3 -3 -2 -1 --------- Run | Yrd Mat Sub Scr Fac Low Low Zio Pro Fac Ext Cet Arc Hub Fac Upp Upp Zhi Pro Res Qua Res Acc Machines Accessed 78 | . 3 2 2 14 . . . . 10 10 1 . 2 7 1 1 4 . 1 8 9 3 Terminals 36 | . 3 . . 3 . . . . 4 10 1 . 2 4 . . . . 1 4 3 1 Fabricators 6 | . . . . 1 . . . . 2 . . . . . . . . . . . 2 1 Repair Stations 8 | . . . . 2 . . . . 2 . . . . 2 . . . . . 2 . . Recycling Units 8 | . . . . 5 . . . . 2 . . . . 1 . . . . . . . . Scanalyzers 5 | . . . . 1 . . . . . . . . . . . . . . . 1 2 1 Garrison Access 5 | . . . . 2 . . . . . . . . . . . . . . . 1 2 . Total Hacks 245 | . 12 4 25 33 . . . . 22 22 3 . 4 30 1 1 17 . 7 25 32 7 Successful 132 | . 5 4 25 20 . . . . 10 12 . . 1 13 1 1 17 . . 10 12 1 Failed 112 | . 7 . . 13 . . . . 12 10 3 . 3 17 . . . . 7 15 19 6 Catastrophic 27 | . 2 . . 2 . . . . 6 2 1 . . 2 . . . . 2 3 7 . Database Lockouts 1 | . . . . . . . . . . . . . . . . . . . . . 1 . Manual 73 | . 10 . . 17 . . . . 14 1 1 . 4 7 . . . . . 8 6 5 Terminals 111 | . 12 . . 7 . . . . 12 22 3 . 4 14 . . . . 7 13 13 4 Fabricators 13 | . . . . 4 . . . . 3 . . . . . . . . . . . 5 1 Repair Stations 26 | . . . . 6 . . . . 3 . . . . 11 . . . . . 6 . . Recycling Units 20 | . . . . 11 . . . . 4 . . . . 5 . . . . . . . . Scanalyzers 14 | . . . . 3 . . . . . . . . . . . . . . . 4 5 2 Garrison Access 13 | . . . . 2 . . . . . . . . . . . . . . . 2 9 . Terminal Hacks 78 | . 5 4 25 2 . . . . 3 11 . . . 3 1 1 17 . . 3 3 . Record 33 | . . 3 25 . . . . . . . . . . . . . 5 . . . . . Part Schematic 5 | . 1 . . . . . . . . . . . . . . . 4 . . . . . Robot Analysis 8 | . 3 . . . . . . . 1 . . . . . . . 4 . . . . . Prototype ID Bank 5 | . . . . . . . . . 1 . . . . . . . 4 . . . . . Open Door 9 | . . . . . . . . . . 7 . . . . 1 1 . . . . . . Unreport Threat 8 | . . . . 2 . . . . . 3 . . . 1 . . . . . . 2 . Locate Traps 7 | . 1 . . . . . . . 1 1 . . . 1 . . . . . 2 1 . Registered Components 1 | . . . . . . . . . . . . . . 1 . . . . . . . . Zone Layout 1 | . . . . . . . . . . . . . . . . . . . . 1 . . Proto ID Catalog 1 | . . 1 . . . . . . . . . . . . . . . . . . . . Fabricator Hacks 1 | . . . . . . . . . . . . . . . . . . . . . 1 . Network Status 1 | . . . . . . . . . . . . . . . . . . . . . 1 . Repair Station Hacks 14 | . . . . 4 . . . . 1 . . . . 4 . . . . . 5 . . Scan Component 8 | . . . . 2 . . . . 1 . . . . 2 . . . . . 3 . . Repair 6 | . . . . 2 . . . . . . . . . 2 . . . . . 2 . . Recycling Unit Hacks 9 | . . . . 3 . . . . 1 . . . . 5 . . . . . . . . Process 2 | . . . . . . . . . . . . . . 2 . . . . . . . . Report Inventory 1 | . . . . . . . . . . . . . . 1 . . . . . . . . Retrieve Matter 2 | . . . . . . . . . . . . . . 2 . . . . . . . . Retrieve Components 4 | . . . . 3 . . . . 1 . . . . . . . . . . . . . Scanalyzer 5 | . . . . 2 . . . . . . . . . . . . . . . 1 2 . Retrieve Study 5 | . . . . 2 . . . . . . . . . . . . . . . 1 2 . Garrison Access Hacks 5 | . . . . 2 . . . . . . . . . . . . . . . 1 2 . Seal Access 5 | . . . . 2 . . . . . . . . . . . . . . . 1 2 . Unauthorized Hacks 20 | . . . . 7 . . . . 5 1 . . 1 1 . . . . . . 4 1 Terminals 10 | . . . . 2 . . . . 3 1 . . 1 1 . . . . . . 2 . Assimilate 1 | . . . . . . . . . 1 . . . . . . . . . . . . . Botnet 6 | . . . . 1 . . . . 1 1 . . . 1 . . . . . . 2 . Operators 2 | . . . . 1 . . . . 1 . . . . . . . . . . . . . Sabotage 1 | . . . . . . . . . . . . . 1 . . . . . . . . . Fabricators 3 | . . . . . . . . . . . . . . . . . . . . . 2 1 Liberate 2 | . . . . . . . . . . . . . . . . . . . . . 1 1 Haulers 1 | . . . . . . . . . . . . . . . . . . . . . 1 . Repair Stations . | . . . . . . . . . . . . . . . . . . . . . . . Recycling Units 7 | . . . . 5 . . . . 2 . . . . . . . . . . . . . Fedlink 6 | . . . . 5 . . . . 1 . . . . . . . . . . . . . Scraphulk 1 | . . . . . . . . . 1 . . . . . . . . . . . . . Scanalyzers . | . . . . . . . . . . . . . . . . . . . . . . . Garrison Access . | . . . . . . . . . . . . . . . . . . . . . . . Data Cores Recovered 3 | . . . . 1 . . . . . 1 . . 1 . . . . . . . . . Used 1 | . . . . 1 . . . . . . . . . . . . . . . . . . Hacking Detections 44 | . 3 . . 8 . . . . 7 3 2 . 2 6 . . . . 1 5 4 3 Full Trace Events 3 | . 2 . . . . . . . . . . . 1 . . . . . . . . . Feedback Events . | . . . . . . . . . . . . . . . . . . . . . . . Feedback Blocked . | . . . . . . . . . . . . . . . . . . . . . . . Robot Schematics Acquired 3 | . . . . . . . 3 . . . . . . . . . . . . . . . Robots Built . | . . . . . . . . . . . . . . . . . . . . . . . Authchips . | . . . . . . . . . . . . . . . . . . . . . . . Time . | . . . . . . . . . . . . . . . . . . . . . . . Total Robot Build Rating . | . . . . . . . . . . . . . . . . . . . . . . . Part Schematics Acquired 22 | . 1 . . . . . 15 . . . . . . . . . 4 . . 2 . . Parts Built . | . . . . . . . . . . . . . . . . . . . . . . . Authchips . | . . . . . . . . . . . . . . . . . . . . . . . Time . | . . . . . . . . . . . . . . . . . . . . . . . Total Part Build Rating . | . . . . . . . . . . . . . . . . . . . . . . . Part Studies Acquired 5 | . . . . 2 . . . . . . . . . . . . . . . 1 2 . Parts Repaired 6 | . . . . 2 . . . . . . . . . 2 . . . . . 2 . . Time 280 | . . . . 69 . . . . . . . . . 71 . . . . . 140 . . Parts Recycled . | . . . . . . . . . . . . . . . . . . . . . . . Recycled Matter 448 | . . . . . . . . . . . . . . 448 . . . . . . . . Retrieved Matter 614 | . . . . . . . . . . . . . . 614 . . . . . . . . Retrieved Components 12 | . . . . 9 . . . . 3 . . . . . . . . . . . . . Parts Scanalyzed . | . . . . . . . . . . . . . . . . . . . . . . . Part Schematics Acquired . | . . . . . . . . . . . . . . . . . . . . . . . Parts Damaged . | . . . . . . . . . . . . . . . . . . . . . . . Bothacking | -11 -10 -10 -8 -6 -6 -6 -6 -5 -5 -5 -5 -5 -5 -4 -4 -4 -4 -3 -3 -3 -2 -1 ------------ Run | Yrd Mat Sub Scr Fac Low Low Zio Pro Fac Ext Cet Arc Hub Fac Upp Upp Zhi Pro Res Qua Res Acc Used RIF Installer . | . . . . . . . . . . . . . . . . . . . . . . . Robots Hacked 14 | . . . 1 . . . 1 . 1 1 1 1 . . . . 3 4 . 1 . . Non-combat 3 | . . . . . . . . . 1 . . 1 . . . . . . . 1 . . Combat 11 | . . . 1 . . . 1 . . 1 1 . . . . . 3 4 . . . . Robot Hacks Applied 15 | . . . 1 . . . 1 . 1 1 1 1 . . . . 3 4 . 2 . . parse_system 11 | . . . 1 . . . 1 . . 1 1 . . . . . 3 4 . . . . no_distress 2 | . . . . . . . . . . . . . . . . . . . . 2 . . find_chute 1 | . . . . . . . . . 1 . . . . . . . . . . . . . check_alert 1 | . . . . . . . . . . . . 1 . . . . . . . . . . Relay Couplers Released . | . . . . . . . . . . . . . . . . . . . . . . . Fabnet Peak Effective % . | . . . . . . . . . . . . . . . . . . . . . . . Robots Rewired 16 | . . . . . 2 . . . . 14 . . . . . . . . . . . . Allies Hacked 5 | . . . . . . 1 . . . . . . . . . . . . . . 3 1 Hacks Repelled . | . . . . . . . . . . . . . . . . . . . . . . . Allies | -11 -10 -10 -8 -6 -6 -6 -6 -5 -5 -5 -5 -5 -5 -4 -4 -4 -4 -3 -3 -3 -2 -1 -------- Run | Yrd Mat Sub Scr Fac Low Low Zio Pro Fac Ext Cet Arc Hub Fac Upp Upp Zhi Pro Res Qua Res Acc Total Allies 33 | . . . . . 2 . 2 . 1 23 5 . . . . . . . . . . . Largest Group 15 | . . . . . 2 2 3 3 3 15 9 8 4 . . . . . . . . . Highest-Rated Group 664 | . . . . . 58 58 90 90 188 426 664 624 322 . . . . . . . . . Highest-Rated Ally 159 | . . . . . 29 29 36 36 123 159 159 159 96 . . . . . . . . . Initial UFD Resources 65 | . . . . 23 43 43 43 47 47 52 52 52 52 55 55 55 55 59 59 59 61 65 Total Orders 13 | . . . . . . . . . . . . . . 6 . . 2 . . 2 3 . STAY 8 | . . . . . . . . . . . . . . 5 . . 1 . . 1 1 . FOLLOW 4 | . . . . . . . . . . . . . . 1 . . 1 . . 1 1 . DROP 1 | . . . . . . . . . . . . . . . . . . . . . 1 . Ally Attacks 721 | . . . . . 1 4 . 24 5 165 44 29 29 2 46 4 . 32 22 106 172 36 Total Damage 20274 | . . . . . 19 65 . 503 49 3698 902 774 851 106 1299 134 . 1004 694 3421 5159 1596 Kills 117 | . . . . . 1 . . 5 . 20 7 4 5 1 10 2 . 5 2 25 22 8 Allies Corrupted 6 | . . . . . . . . . . . . . . . . . . . . . 5 1 Allies Melted 2 | . . . 1 . . . . . . . . . . . . . . . . . 1 . Borg Created 23 | . . . . . . . . . . . . . . 8 . . . 5 . 1 5 4 Largest Collective 8 | . . . . . . . . . . . . . . 8 . . . 7 . 5 4 3 Intel | -11 -10 -10 -8 -6 -6 -6 -6 -5 -5 -5 -5 -5 -5 -4 -4 -4 -4 -3 -3 -3 -2 -1 ------- Run | Yrd Mat Sub Scr Fac Low Low Zio Pro Fac Ext Cet Arc Hub Fac Upp Upp Zhi Pro Res Qua Res Acc Active Infowar (turns) 16044 | . . 1972 . 849 442 562 1281 595 563 302 . . 5 3871 449 410 307 1334 159 776 1486 681 Sensors 7932 | . . . . 849 442 562 1281 595 563 302 . . . 912 251 372 95 510 65 449 250 434 Structural 35 | . . . . . . . . . . . . . . . . . . . . . . 35 Seismic 1972 | . . 1972 . . . . . . . . . . . . . . . . . . . . Decoding 3102 | . . . . . . . . . . . . . . . . . . . 159 776 1486 681 Jamming 8560 | . . . . . . . . . . . . . 5 3062 449 410 307 1226 158 776 1486 681 Robot Analysis Total 8 | . 3 . . . . . . . 1 . . . . . . . 4 . . . . . Derelict Logs Recovered 13 | . . 1 4 . 2 2 2 1 . . . . . . 1 . . . . . . . Drone Launches . | . . . . . . . . . . . . . . . . . . . . . . . Drone Recoveries . | . . . . . . . . . . . . . . . . . . . . . . . Decoded 0b10 Intel 43 | . . . . . . . . . . . . . . . . . . . 4 8 17 14 Traps 11 | . . . . . . . . . . . . . . . . . . . . 3 . 8 Emergency Access 27 | . . . . . . . . . . . . . . . . . . . 3 4 15 5 Garrisons 4 | . . . . . . . . . . . . . . . . . . . . 1 2 1 Exits 1 | . . . . . . . . . . . . . . . . . . . 1 . . . Exploration | -11 -10 -10 -8 -6 -6 -6 -6 -5 -5 -5 -5 -5 -5 -4 -4 -4 -4 -3 -3 -3 -2 -1 ------------- Run | Yrd Mat Sub Scr Fac Low Low Zio Pro Fac Ext Cet Arc Hub Fac Upp Upp Zhi Pro Res Qua Res Acc Turns Passed 25003 | 241 545 3074 2574 1584 653 582 1285 731 659 1928 474 406 343 4243 449 410 307 1413 159 776 1486 681 Spaces Moved 13235 | 94 207 1452 1567 815 354 378 871 424 393 1045 211 130 155 1764 294 289 204 815 97 406 803 467 Core 3 | 3 . . . . . . . . . . . . . . . . . . . . . . Treads 1666 | 91 207 1219 147 . . . . . . 1 1 . . . . . . . . . . . Legs . | . . . . . . . . . . . . . . . . . . . . . . . Wheels 11566 | . . 233 1420 815 354 378 871 424 393 1044 210 130 155 1764 294 289 204 815 97 406 803 467 Hover . | . . . . . . . . . . . . . . . . . . . . . . . Flight . | . . . . . . . . . . . . . . . . . . . . . . . Fastest Speed 50 | 50 160 120 95 111 150 150 135 135 150 125 160 190 170 128 130 130 130 130 130 130 130 115 Average Speed 147 | 156 160 158 160 142 150 150 140 144 150 144 178 190 172 149 130 130 130 130 130 130 155 117 Slowest Speed 570 | 160 160 160 250 265 150 150 150 150 165 570 245 190 190 185 130 130 130 130 130 130 158 130 Overloaded Moves . | . . . . . . . . . . . . . . . . . . . . . . . Propulsion Burnouts . | . . . . . . . . . . . . . . . . . . . . . . . Robots Hopped . | . . . . . . . . . . . . . . . . . . . . . . . Potential Cave-ins 9 | . . . . . . . . 2 . . . . . 5 . . . . . 2 . . Cave-ins Triggered . | . . . . . . . . . . . . . . . . . . . . . . . Exploration Rate (%) 47 | 6 46 76 82 24 51 55 84 69 14 79 68 74 19 15 56 47 60 67 4 46 33 13 Regions Visited 22 Branch Regions 15 Pre-discovered Areas 9 | . . . 4 1 . 1 . . . . . . . . . . 3 . . . . . Known Exits Taken 19 | . . . 1 1 1 1 1 1 1 1 1 1 1 1 1 1 1 1 1 1 1 . Unknown Exits Taken 3 | 1 1 1 . . . . . . . . . . . . . . . . . . . . Scrap Searched 32 | . . 14 5 . 2 3 1 2 . . . . . . 1 2 . 2 . . . . Spaces Dug 170 | . . . 10 13 7 . . 45 2 . . . . 11 20 14 . 1 . 1 3 43 Terrain Destroyed 512 | . . . 22 99 17 2 . 71 2 39 1 3 40 57 45 18 . 1 . 31 14 50 Melee 20 | . . . . 12 4 . . . 2 . . . . 2 . . . . . . . . Projectile 155 | . . . . 2 1 2 . 21 . 17 1 3 18 49 . 5 . 1 . 5 9 21 AOE 334 | . . . 22 85 10 . . 50 . 22 . . 22 5 45 13 . . . 26 5 29 Terrain Rammed . | . . . . . . . . . . . . . . . . . . . . . . . Walls Destroyed . | . . . . . . . . . . . . . . . . . . . . . . . Machines Disabled . | . . . . . . . . . . . . . . . . . . . . . . . Actions | -11 -10 -10 -8 -6 -6 -6 -6 -5 -5 -5 -5 -5 -5 -4 -4 -4 -4 -3 -3 -3 -2 -1 --------- Run | Yrd Mat Sub Scr Fac Low Low Zio Pro Fac Ext Cet Arc Hub Fac Upp Upp Zhi Pro Res Qua Res Acc Total 17685 | 139 398 2124 1626 1120 436 387 926 496 444 1341 282 267 188 3169 351 310 230 1093 123 633 1014 588 Wait 2886 | 6 149 545 9 141 17 3 25 20 9 121 27 119 7 1210 39 5 2 218 12 92 79 31 Move 13212 | 93 206 1451 1566 814 353 377 870 423 392 1044 210 129 154 1763 293 288 203 814 96 405 802 466 Hop . | . . . . . . . . . . . . . . . . . . . . . . . Pick Up 170 | 7 15 18 20 23 6 1 4 2 7 12 3 . 1 14 2 1 3 4 1 5 13 8 Fast Attach 98 | 6 2 2 6 11 3 . 5 1 2 23 9 3 2 15 . . 3 . . 1 2 2 Attach 43 | . . . . 8 1 . . . 5 12 2 . 1 5 1 . 1 . 3 . 2 2 Detach 37 | . 1 1 3 3 1 . . . . 15 1 1 1 5 . . 1 . 1 . 1 2 Swap 232 | . 2 36 11 30 11 3 6 15 7 7 5 4 4 33 4 8 3 13 2 8 7 13 Drop 182 | . 8 24 8 18 6 1 10 3 8 17 12 2 2 24 3 . 4 5 1 3 14 9 Fire 471 | 25 14 42 2 46 31 2 . 29 6 49 12 6 16 77 9 8 . 1 7 14 40 35 Melee 141 | . . 3 1 25 7 . 6 3 8 27 1 3 . 15 . . 10 30 . 2 . . Ram . | . . . . . . . . . . . . . . . . . . . . . . . Kick . | . . . . . . . . . . . . . . . . . . . . . . . Crush 3 | 2 1 . . . . . . . . . . . . . . . . . . . . . Escape Stasis 30 | . . . . . . . . . . 14 . . . . . . . . . . . 16 Rewire 1 | . . . . . . . . . . . . . . . . . . . . . 1 . Trap 150 | . . 2 . 1 . . . . . . . . . . . . . . . 102 45 . Miscellaneous 29 | . . . . . . . . . . . . . . 8 . . . 8 . 1 8 4 Route ------- -11/Scrapyard -10/Materials (discovered 2 exits: [*Mat] / *Sub) -10/Subcaves (discovered 2 exits: [*Mat] / *Scr) -8/Scraptown (discovered 2 exits: *Fac x2) -6/Factory (discovered 5 exits: *Fac x3 / *Low x2) -6/Lower Caves -6/Lower Caves -6/Zion -5/Proximity Caves -5/Factory (discovered 4 exits: Fac / *Upp x2 / *Ext) -5/Extension (discovered 2 exits: *Fac / *Cet) -5/Cetus (discovered 2 exits: *Fac / *Arc) -5/Archives (discovered 3 exits: *Fac / *Hub x2) -5/Hub_04(d) -4/Factory (discovered 2 exits: *Upp x2) -4/Upper Caves -4/Upper Caves (discovered 2 exits: Res / *Zhi) -4/Zhirov -3/Proximity Caves -3/Research (discovered 3 exits: Res / *Qua x2) -3/Quarantine -2/Research -1/Access To Epsilon Eridani History --------- Turn | Location | Event 4 | -11/Scrapyard | Discovered new exit (range 15) 242 | -11/Scrapyard | Entered Materials 300 | -10/Materials | Build established: Mutant 580 | -10/Materials | Discovered new exit (range 5) 767 | -10/Materials | Discovered new exit (range 9) 787 | -10/Materials | Entered Subcaves 788 | -10/Subcaves | Approached by a straggling Scientist 903 | -10/Subcaves | Shifting Twisted Machinery released Flamer 1172 | -10/Subcaves | Disturbed a concealed Subdweller 1310 | -10/Subcaves | Shifting Twisted Machinery released Battle Rifle 1311 | -10/Subcaves | Shifting Twisted Machinery released Battle Rifle 1615 | -10/Subcaves | Scientist uncovered a shortcut to Scraptown 2079 | -10/Subcaves | Visited Clippyterm 2083 | -10/Subcaves | Learned Factory trap positions 2143 | -10/Subcaves | A swath of the cavern ceiling suddenly collapsed 2198 | -10/Subcaves | Discovered new exit (range 14) 2236 | -10/Subcaves | A swath of the cavern ceiling suddenly collapsed 2366 | -10/Subcaves | Learned Materials interactive machine intel 3517 | -10/Subcaves | Visited 4L-MR0's lab 3541 | -10/Subcaves | Found Tower Shield 3545 | -10/Subcaves | Found Prototype Special Melee Weapon 3861 | -10/Subcaves | Entered Scraptown 4211 | -8/Scraptown | Discovered new exit (range 11) 4285 | -8/Scraptown | Scanned Subdweller tech in exchange for log data 4288 | -8/Scraptown | Learned Factory interactive machine intel 4290 | -8/Scraptown | Learned location of Testing (-2) 4293 | -8/Scraptown | Learned Research trap positions 4330 | -8/Scraptown | Visited Red Mages 4362 | -8/Scraptown | Visited CR-KLE's Repair Center 4423 | -8/Scraptown | Heard Great Nut preacher, LISTEN AND RECITE! 4437 | -8/Scraptown | Visited Comm Corps 4460 | -8/Scraptown | Visited Assassins FH 4480 | -8/Scraptown | Visited Shadow of the Wyrm 4508 | -8/Scraptown | Visited Awakened 4527 | -8/Scraptown | Visited Fellowship of the Rings 4552 | -8/Scraptown | Visited UFD Registry 4552 | -8/Scraptown | Registered with UFD as "Nanotalker" 4665 | -8/Scraptown | Guru changed UFD alias to "Steelguard" 4835 | -8/Scraptown | Visited Junk Repository 4886 | -8/Scraptown | Visited Junk Repository 4950 | -8/Scraptown | Visited Science Testing Area 4975 | -8/Scraptown | Visited Cartography Club 4989 | -8/Scraptown | Visited Derelict Rescue Squad 4998 | -8/Scraptown | Found DRS Beacon 5025 | -8/Scraptown | Visited Research Penetration Think Tank 5059 | -8/Scraptown | Visited Scrap Suit Storage 5078 | -8/Scraptown | Visited Abandonware Association 5095 | -8/Scraptown | Learned abandonware demo "SHUTEYE.EXE" 5095 | -8/Scraptown | Learned abandonware demo "MELTYB.EXE" 5149 | -8/Scraptown | Visited Observation Area 5233 | -8/Scraptown | Delivered Scrap Shield to a Scientist 5793 | -8/Scraptown | CR-KLE repaired 6 parts 6182 | -8/Scraptown | Met Optimus 6182 | -8/Scraptown | Accepted into 0bPrime 6328 | -8/Scraptown | Learned location of Archives (-5) 6328 | -8/Scraptown | Learned 16 Materials zone layouts 6328 | -8/Scraptown | Learned 16 Factory zone layouts 6328 | -8/Scraptown | Learned 8 Research zone layouts 6328 | -8/Scraptown | Learned 12 Research zone layouts 6328 | -8/Scraptown | Learned 8 Access zone layouts 6328 | -8/Scraptown | Learned 4 Recycling zone layouts 6328 | -8/Scraptown | Learned 20 Lower Caves zone layouts 6328 | -8/Scraptown | Learned 16 Upper Caves zone layouts 6328 | -8/Scraptown | Learned 24 Upper Caves zone layouts 6328 | -8/Scraptown | Learned 8 Proximity Caves zone layouts 6328 | -8/Scraptown | Learned Storage emergency access door positions 6328 | -8/Scraptown | Learned location of 1 exit from Factory 6328 | -8/Scraptown | Learned location of 1 exit from Upper Caves 6328 | -8/Scraptown | Learned location of 2 exits from Proximity Caves 6328 | -8/Scraptown | Identified exit to Factory 6356 | -8/Scraptown | Found Deep Structural Scanner 6392 | -8/Scraptown | Civil war broke out across Scraptown 6435 | -8/Scraptown | Entered Factory 6435 | -6/Factory | Evolved 8 slots: Power x1, Propulsion x1, Utility x3, Weapon x3 6436 | -6/Factory | Identified exit to Factory 6436 | -6/Factory | Identified exit to Lower Caves 6439 | -6/Factory | Loaded intel: 101 trap records 6440 | -6/Factory | Loaded intel: 54 interactive machine locations 6444 | -6/Factory | Lost 7 allies 6623 | -6/Factory | Repaired Mak. Microdissipator Network 6685 | -6/Factory | Discovered exit to Factory (range 7) 6833 | -6/Factory | Found Prototype Launcher 7061 | -6/Factory | Destroyed 8 combat bots 7236 | -6/Factory | Loaded intel: 8 recycling unit locations 7281 | -6/Factory | Learned location of Protoforge (-2) 7341 | -6/Factory | Build established: Derelict-Skirmisher 7996 | -6/Factory | Repaired Angular Momentum Engine 8019 | -6/Factory | Entered Lower Caves 8020 | -6/Lower Caves | Identified exit to Lower Caves 8021 | -6/Lower Caves | UFD Scientist delivered a prototype 8024 | -6/Lower Caves | Found Prototype Protection 8024 | -6/Lower Caves | Identified Enh. Scrap Shield 8400 | -6/Lower Caves | Attacked by a delusional Derelict stockpiling parts 8536 | -6/Lower Caves | Found Alien Artifact 8536 | -6/Lower Caves | Identified Core Expander 8536 | -6/Lower Caves | Installed Core Expander, added new Weapon slot 8603 | -6/Lower Caves | Learned 4 Factory zone layouts 8672 | -6/Lower Caves | Entered another Lower Caves area 8672 | -6/Lower Caves | Accompanied by 2 allies 8777 | -6/Lower Caves | Encountered a Warlord checkpoint 8840 | -6/Lower Caves | Build established: Executioner 9077 | -6/Lower Caves | Learned 8 Factory zone layouts 9191 | -6/Lower Caves | Discovered new exit (range 14) 9215 | -6/Lower Caves | Identified exit to Zion 9254 | -6/Lower Caves | Entered Zion 9254 | -6/Zion | Accompanied by 1 ally 9255 | -6/Zion | Identified exit to Proximity Caves 9295 | -6/Zion | System corruption cleaned by Quarantine Array 9418 | -6/Zion | Learned Factory interactive machine intel 9639 | -6/Zion | Given the Hacking Drone Bay 9639 | -6/Zion | Found Prototype Device 9640 | -6/Zion | Identified Hacking Drone Bay 9745 | -6/Zion | Gained Derelict followers 9892 | -6/Zion | Found CR-A16's Pointy Stick 9931 | -6/Zion | Turned away by Imprinter 10192 | -6/Zion | Learned location of 1 exit from Factory 10539 | -6/Zion | Entered Proximity Caves 10539 | -5/Proximity Caves | Accompanied by 3 allies 10832 | -5/Proximity Caves | Learned Factory trap positions 11057 | -5/Proximity Caves | Identified Rocket Array 11071 | -5/Proximity Caves | Attracted the attention of an 0b10 checkpoint 11270 | -5/Proximity Caves | Entered Factory 11270 | -5/Factory | Accompanied by 2 allies 11270 | -5/Factory | Evolved 2 slots: Utility x2 11271 | -5/Factory | Identified exit to Upper Caves 11272 | -5/Factory | Identified exit to Factory 11274 | -5/Factory | Loaded intel: 77 trap records 11275 | -5/Factory | Loaded intel: 53 interactive machine locations 11423 | -5/Factory | Build established: Derelict-Executioner 11730 | -5/Factory | Loaded intel: 8 recycling unit locations 11794 | -5/Factory | Scraphulk reinforcements arrived? 11852 | -5/Factory | Spotted 05F01-K 11910 | -5/Factory | Discovered new exit (range 14) 11928 | -5/Factory | Lost 6 parts (1n1u4w) 11928 | -5/Factory | Identified exit to Extension 11929 | -5/Factory | Entered Extension 12407 | -5/Extension | Lost 3 parts (2n1w) 12408 | -5/Extension | Destroyed 11 combat bots 12534 | -5/Extension | Rescued a captive Derelict 12560 | -5/Extension | Build established: Scavenger-Executioner 12600 | -5/Extension | Rescued a captive Derelict 12601 | -5/Extension | Rescued a captive Derelict 12611 | -5/Extension | Rescued a captive Derelict 12651 | -5/Extension | Rescued a captive Derelict 12982 | -5/Extension | Build established: Commander-Executioner 13254 | -5/Extension | Spotted B-75 Beast 13262 | -5/Extension | Allies destroyed B-75 Beast 13272 | -5/Extension | Spotted B-75 Beast 13303 | -5/Extension | Allies destroyed B-75 Beast 13333 | -5/Extension | Lost 5 allies 13444 | -5/Extension | Rescued a captive Derelict 13470 | -5/Extension | Rescued a captive Derelict 13496 | -5/Extension | Lost 3 allies 13502 | -5/Extension | Rescued a captive Derelict 13577 | -5/Extension | Build established: Scavenger-Executioner 13683 | -5/Extension | Energy Cycler disabled 13688 | -5/Extension | Rescued A7 13747 | -5/Extension | Lost 6 allies 13796 | -5/Extension | Discovered exit to Factory (range 10) 13804 | -5/Extension | Discovered new exit (range 6) 13817 | -5/Extension | Identified exit to Cetus 13857 | -5/Extension | Entered Cetus 13857 | -5/Cetus | Accompanied by 8 allies (A7) 13862 | -5/Cetus | Acquired a Cetus Manufacturing Module code from A7 13880 | -5/Cetus | Spotted Cetus Guard 13880 | -5/Cetus | Spotted Cetus Guard 13883 | -5/Cetus | Spotted Cetus Guard 13884 | -5/Cetus | Spotted Cetus Guard 13890 | -5/Cetus | Destroyed Cetus Guard 13897 | -5/Cetus | Destroyed Cetus Guard 13900 | -5/Cetus | Allies destroyed Cetus Guard 13909 | -5/Cetus | Allies destroyed Cetus Guard 13937 | -5/Cetus | Lost 3 allies 14078 | -5/Cetus | Started Cetus Manufacturing Module 14099 | -5/Cetus | Escorted A7 to Cetus Mainframe 14103 | -5/Cetus | Manufactured an Enhanced Grunt 14128 | -5/Cetus | Manufactured an Enhanced Grunt 14137 | -5/Cetus | Discovered new exit (range 15) 14153 | -5/Cetus | Manufactured an Enhanced Grunt 14175 | -5/Cetus | Spotted Cetus Guard 14175 | -5/Cetus | Spotted Cetus Guard 14178 | -5/Cetus | Manufactured an Enhanced Grunt 14178 | -5/Cetus | Spotted Cetus Guard 14179 | -5/Cetus | Spotted Cetus Guard 14182 | -5/Cetus | Destroyed Cetus Guard 14189 | -5/Cetus | Destroyed Cetus Guard 14193 | -5/Cetus | Allies destroyed Cetus Guard 14195 | -5/Cetus | Allies destroyed Cetus Guard 14203 | -5/Cetus | Manufactured an Enhanced Grunt 14211 | -5/Cetus | Discovered exit to Factory (range 15) 14222 | -5/Cetus | Met Revision 17 14324 | -5/Cetus | Identified exit to Archives 14331 | -5/Cetus | Entered Archives 14331 | -5/Archives | Accompanied by 8 allies (A7) 14336 | -5/Archives | Received a hacking code to weaken MAIN.C 14371 | -5/Archives | Lost 3 allies 14411 | -5/Archives | Discovered new exit (range 16) 14433 | -5/Archives | Discovered exit to Factory (range 16) 14597 | -5/Archives | Discovered new exit (range 15) 14624 | -5/Archives | Identified exit to Hub_04(d) 14737 | -5/Archives | Entered Hub_04(d) 14737 | -5/Hub_04(d) | Accompanied by 4 allies 14830 | -5/Hub_04(d) | Discovered exit to Factory (range 6) 14995 | -5/Hub_04(d) | Network Hub disabled 14995 | -5/Hub_04(d) | Network Hub disabled 15080 | -5/Hub_04(d) | Entered Factory 15080 | -4/Factory | Evolved 2 slots: Propulsion x1, Utility x1 15081 | -4/Factory | Identified exit to Upper Caves 16408 | -4/Factory | Repaired Adv. KE Penetrator? 16701 | -4/Factory | Repaired Arm. Huge Wheel 18050 | -4/Factory | Identified 1B-0RG's Assimilator 18309 | -4/Factory | Assimilating Sage 7a into Collective. 18318 | -4/Factory | Assimilating Sage 7b into Collective. 18333 | -4/Factory | Build established: Scavenger-Mutant 18364 | -4/Factory | Assimilating Serf 7a into Collective. 18449 | -4/Factory | Assimilating Processor 7a into Collective. 18642 | -4/Factory | Assimilating Sage 7c into Collective. 18651 | -4/Factory | Assimilating Sage 7d into Collective. 18870 | -4/Factory | Assimilating Serf 7b into Collective. 19094 | -4/Factory | Assimilating Sage 7e into Collective. 19323 | -4/Factory | Entered Upper Caves 19323 | -4/Upper Caves | Accompanied by 8 allies 19324 | -4/Upper Caves | Identified exit to Upper Caves 19497 | -4/Upper Caves | Attracted the attention of an 0b10 checkpoint 19744 | -4/Upper Caves | Learned Research trap positions 19772 | -4/Upper Caves | Entered another Upper Caves area 19772 | -4/Upper Caves | Accompanied by 7 allies 19773 | -4/Upper Caves | Identified exit to Research 19773 | -4/Upper Caves | Discovered new exit (range 92) 19847 | -4/Upper Caves | Spotted B-86 Titan 19852 | -4/Upper Caves | Allies destroyed B-86 Titan 20174 | -4/Upper Caves | Identified exit to Zhirov 20182 | -4/Upper Caves | Entered Zhirov 20182 | -4/Zhirov | Accompanied by 7 allies 20182 | -4/Zhirov | Discovered new exit (range 4) 20206 | -4/Zhirov | Met Zhirov 20251 | -4/Zhirov | Learned location of Quarantine (-3) 20251 | -4/Zhirov | Learned location of Command (-1) 20258 | -4/Zhirov | Zhirov requested help retrieving the SGEMP Prototype 20278 | -4/Zhirov | Found Alien Artifact 20278 | -4/Zhirov | Identified Integrated Dissipator 20278 | -4/Zhirov | Installed Integrated Dissipator, increased core heat dissipation (+20) 20377 | -4/Zhirov | Found Alien Artifact 20488 | -4/Zhirov | Identified exit to Proximity Caves 20489 | -4/Zhirov | Entered Proximity Caves 20489 | -3/Proximity Caves | Accompanied by 7 allies 20497 | -3/Proximity Caves | Activated DRS Beacon 20861 | -3/Proximity Caves | Assimilating OP-6EK(h) into Collective. 21154 | -3/Proximity Caves | Encountered a Derelict sapper outpost 21260 | -3/Proximity Caves | Assimilating PH-7H8(g) into Collective. 21292 | -3/Proximity Caves | Assimilating TP-KAK(h) into Collective. 21572 | -3/Proximity Caves | Assimilating Y4-3C5(h) into Collective. 21764 | -3/Proximity Caves | Assimilating 8U-CWP(h) into Collective. 21902 | -3/Proximity Caves | Entered Research 21902 | -3/Research | Accompanied by 7 allies 21902 | -3/Research | Evolved 2 slots: Utility x2 21903 | -3/Research | Identified exit to Quarantine 21903 | -3/Research | Identified exit to Research 21904 | -3/Research | Loaded intel: 98 trap records 22061 | -3/Research | Entered Quarantine 22061 | -3/Quarantine | Accompanied by 7 allies 22074 | -3/Quarantine | Found Quantum Capacitor 22151 | -3/Quarantine | Repaired Quantum Reactor? 22191 | -3/Quarantine | Repaired Broken Quantum Reactor 22442 | -3/Quarantine | Found Alien Reactor 22682 | -3/Quarantine | Assimilating Analyst 8a into Collective. 22806 | -3/Quarantine | Discovered exit to Research (range 12) 22809 | -3/Quarantine | Cryocooling Duct disabled 22811 | -3/Quarantine | First assault squad dispatched 22824 | -3/Quarantine | Ambient heat levels rising (+20) 22824 | -3/Quarantine | Non-combat units ordered to evacuate 22837 | -3/Quarantine | Entered Research 22837 | -2/Research | Accompanied by 5 allies 22837 | -2/Research | Evolved 2 slots: Power x1, Utility x1 22838 | -2/Research | Loaded intel: 73 trap records 23008 | -2/Research | Watched by a mysterious "MATRIX" hacker. 23014 | -2/Research | Spotted B-90 Cyclops 23021 | -2/Research | Allies destroyed B-90 Cyclops 23483 | -2/Research | Central database locked down 23795 | -2/Research | Lost 4 allies 23948 | -2/Research | Assimilating Warden 9a into Collective. 23986 | -2/Research | Assimilating Master 9a into Collective. 24001 | -2/Research | Assimilating Master 9b into Collective. 24087 | -2/Research | First assault squad dispatched 24159 | -2/Research | Assimilating Master 9c into Collective. 24188 | -2/Research | Assimilating Conveyor 9a into Collective. 24238 | -2/Research | Lost 3 allies 24257 | -2/Research | Discovered new exit (range 13) 24296 | -2/Research | Identified exit to Access 24323 | -2/Research | Entered Access 24323 | -1/Access | Accompanied by 1 ally 24323 | -1/Access | Evolved 2 slots: Propulsion x2 24324 | -1/Access | Identified exit to Surface 24339 | -1/Access | Found Prototype Launcher 24339 | -1/Access | Identified Ragnarok Missile Launcher 24346 | -1/Access | Found Faulty Ragnarok Missile Launcher 24348 | -1/Access | Found Ragnarok Missile Launcher 24350 | -1/Access | Found Ragnarok Missile Launcher 24483 | -1/Access | Assimilating Engineer 10a into Collective. 24665 | -1/Access | Assimilating Master 10a into Collective. 24669 | -1/Access | Assimilating Master 10b into Collective. 24675 | -1/Access | Assimilating Master 10c into Collective. 24991 | -1/Access | Identified Matter Drive 25004 | *** | Escaped! Last Messages --------------- 24960_ Y-72 Warden system corrupted by crushing effect. 24961_ Y-72 Warden system terminally corrupted. 24961_ Borg Master 10b resets Borg Master 10c, system corruption cleaned. 24967_ Acquired Adv. Focal Shield. 24969_ Dropped Lrn. Sensor Array. 24970_ Enh. Scrap Shield absorbs Lrn. Sensor Array into its structure (+2). 24973_ Enh. Scrap Shield absorbs Adv. Focal Shield into its structure (+3). 24975_ Enh. Scrap Shield absorbs Lrn. Sensor Array into its structure (+2). 24977_ Enh. Scrap Shield absorbs Lrn. Sensor Array into its structure (+1). 24981_ Enh. Scrap Shield absorbs Adv. Shield Generator into its structure (+5). 24983_ Connecting with Terminal... 24991_ Identified Matter Drive. 25000_ Main Access Shell breached. Map ----- +----------------------------------------------------+ | ####???????^???? ?????? # # | | #????????????? ??????? + + | | ########?????? ??????? # # " | | # #??????#+#??##??? # # """ | | # ######## ###"##+######+##### # """ | | " + " %[ # " | | # " % # | | # ##########+################# # | | # #?# ########## # | | ### ####?# # ==! # ########## | | ####?#+#????# = " # =!= # #????????? | | ??????????#=% """ # =!= # #????????? | | ?????????##%[ """ # # #????????? | | ?????????# " # # #????????? | | ?????????## # # #????????? | | ??????????# # + #????????? | | ??????????# """"T"""" # # #????????? | | "??????????# """"""""""" ; # #????????? | | "??????????##############;;;######### #????????? | | ?? "" #???????????????# ###?????# #????????? | | ?? "" #################;;;#"####### #????????? | | ?? # """" p " #????????? | | ?? # """" p " #????????? | | ??###+#### """" """"" " #????????? | | ?? """" " "p " #????????? | | ?? """" " "@ " " #????????? | | ?? """" " "" " " #????????? | | ?? """" " " " #????????? | | ?? ### """" """""" " #????????? | | ?? #?# """" """" """ #????????? | | ?? #?# """" """"T""" #????????? | | ?? #?#####################"####### #????????? | | ?? #?????????????????????###?????# #????????? | | ?? ###########???????????????????# ########## | | ?? # #???????????????????# # # | | ??###### #??????############## # # | | ?? ## #??????# + # " # | | ?? ## #??????# # # """ # | | ??" ######+#######????# + # """ # | | ??" + #????# # + " # | | ??"" ############ #????# # # # | | ??"" #??????????# #????# # # # | | ??"" #??????????# #????# " # # # | | ??"" #?????###### #????# """" # ########## | | ?????????????????????????????????????????????????? | | ?????????????????????????????????????????????????? | | ?????????????????????????????????????????????????? | | ?????????????????????????????????????????????????? | | ?????????????????????????????????????????????????? | | ?????????????????????????????????????????????????? | +----------------------------------------------------+ Best States ------------- Heat Dissipation 119 Coolant Potential 80 Energy Generation 63 Energy Capacity 825 Matter Stores 901 Matter Capacity 1000 Sight Range 16 Robot Scan Range 18 Terrain Scan Density 10 Jamming Range 16 Base Temperature (-) 200 Corruption Block 10 Armor Coverage 1600 Resistance: KI 30 Power Shielding 90 Evasion (%) 41 Targeting Accuracy 5 Recoil Reduction 2 Particle Charging 15 Offensive Hacking 12 Defensive Hacking 12 Item Schematics ----------------- Hcp. Storage Unit | -10/Materials | Hacked Hvy. Flak Cannon | -6/Zion | Archive Enh. Gauss Cannon | -6/Zion | Archive Falx | -6/Zion | Archive Tesla Rifle | -6/Zion | Archive Energy Well | -6/Zion | Archive Imp. Focal Shield | -6/Zion | Archive Imp. Actuator Array | -6/Zion | Archive Antimatter Reactor | -6/Zion | Archive HERF Cannon | -6/Zion | Archive Drone Bay | -6/Zion | Archive Imp. Corruption Screen | -6/Zion | Archive Imp. Thermal Shield | -6/Zion | Archive Hvy. Pick | -6/Zion | Archive Remote Shield | -6/Zion | Archive Wave Gun | -6/Zion | Archive Assault Drone Bay | -4/Zhirov | Free Exp. Heat Sink | -4/Zhirov | Free Exp. Optical Array | -4/Zhirov | Free Imp. Arc Thrower | -4/Zhirov | Free Hvy. Hardcell Cannon | -3/Quarantine | Archive Com. Particle Reactor | -3/Quarantine | Archive Robot Schematics ------------------ R-10 Processor | -6/Zion | Archive A-15 Conveyor | -6/Zion | Archive H-88 Terminator | -6/Zion | Archive Fabricated ------------ Nothing Repaired ---------- Mak. Microdissipator Network | 44% | -6/Factory Angular Momentum Engine | 34% | -6/Factory Adv. KE Penetrator | 32% | -4/Factory Arm. Huge Wheel | 70% | -4/Factory Quantum Reactor | 56% | -3/Quarantine Quantum Reactor | 43% | -3/Quarantine | Broken Studied --------- Wheel | -6/Factory | Hacked Com. Wheel | -6/Factory | Hacked Arm. Huge Wheel | -3/Quarantine | Hacked Com. HERF Cannon | -2/Research | Hacked Lgt. Particle Reactor | -2/Research | Hacked Alien Tech Used ----------------- Core Expander Integrated Dissipator Matter Drive Achievements -------------- We Are The Borg Challenges ------------ None Game ------ Seed QuantumSeismicCasing Manual? 0 Play Time 02:42:43 Cumulative 2141.2 hours Start 2026.02.18 @ 12:57:40 End 2026.02.18 @ 15:35:55 Sessions 1 Manual Loads 0 Difficulty Rogue Special Mode None Game No. 1364 Rogue 1360 Adventurer 4 Explorer 0 Win Type 0 Total 300 Types 227/13/23/11/3/1/4/10/5/3 Lore% 98 Gallery% 95 Achievement% 88 Wizard Run 0 Options --------- Layout 2 ASCII 0 Keyboard 1 Movement Vi Keybinds 0 Fullscreen 0 Font 24/Terminus Map View 59x48 Zoom Use 0% Tactical HUD 1 Map Filters NONE Filters NONE Steam 1 RUN: 4b92c602-2ceb-4b11-839c-c04067b346ba